[Event "Titled Tuesday Blitz July 11 Late 2023"]
[White "Tristan, Leonardo"]
[Black "Taranenko, Evgueniy"]
[WhiteFideId "113816"]
[BlackFideId "14122138"]
[WhiteElo "2776"]
[BlackElo "2425"]
[Result "1-0"]
[Round "1"]
[TimeControl "180+2"]
[Date "2023.07.11"]
[WhiteClock "0:00:07"]
[BlackClock "0:00:29"]
[Board "68"]

1. d4 {[%clk 0:03:00]}  d6 {[%clk 0:02:53]} 2. e4 {[%clk 0:03:00]}  c6 {[%clk 0:02:51]} 3. Nc3 {[%clk 0:02:59]}  g6 {[%clk 0:02:50]} 4. a4 {[%clk 0:02:58]}  Bg7 {[%clk 0:02:50]} 5. Nf3 {[%clk 0:02:57]}  Nd7 {[%clk 0:02:49]} 6. Be2 {[%clk 0:02:54]}  e5 {[%clk 0:02:49]} 7. O-O {[%clk 0:02:54]}  Ngf6 {[%clk 0:02:44]} 8. h3 {[%clk 0:02:54]}  O-O {[%clk 0:02:43]} 9. Re1 {[%clk 0:02:54]}  exd4 {[%clk 0:02:38]} 10. Nxd4 {[%clk 0:02:53]}  Nc5 {[%clk 0:02:38]} 11. Bf3 {[%clk 0:02:51]}  Re8 {[%clk 0:02:37]} 12. a5 {[%clk 0:02:50]}  Qc7 {[%clk 0:02:33]} 13. Bf4 {[%clk 0:02:49]}  Nfd7 {[%clk 0:02:29]} 14. Bg3 {[%clk 0:02:04]}  Ne5 {[%clk 0:02:25]} 15. Be2 {[%clk 0:02:05]}  Ne6 {[%clk 0:02:16]} 16. Nb3 {[%clk 0:02:04]}  g5 {[%clk 0:02:11]} 17. Bf1 {[%clk 0:02:03]}  h6 {[%clk 0:02:09]} 18. Ra4 {[%clk 0:01:44]}  Rd8 {[%clk 0:02:05]} 19. Ne2 {[%clk 0:01:44]}  Ng6 {[%clk 0:02:04]} 20. Ned4 {[%clk 0:01:43]}  Nef4 {[%clk 0:02:03]} 21. c3 {[%clk 0:01:40]}  Be6 {[%clk 0:01:51]} 22. Nf5 {[%clk 0:01:36]}  d5 {[%clk 0:01:33]} 23. Nxg7 {[%clk 0:01:34]}  Kxg7 {[%clk 0:01:33]} 24. Qc2 {[%clk 0:01:22]}  dxe4 {[%clk 0:01:27]} 25. Nc5 {[%clk 0:01:23]}  Bf5 {[%clk 0:01:12]} 26. Nxe4 {[%clk 0:01:23]}  Rd5 {[%clk 0:01:05]} 27. Qb3 {[%clk 0:01:11]}  Re8 {[%clk 0:01:00]} 28. f3 {[%clk 0:01:08]}  Bxe4 {[%clk 0:00:50]} 29. fxe4 {[%clk 0:00:57]}  Rxa5 {[%clk 0:00:29]} 30. Rxa5 {[%clk 0:00:55]}  Qxa5 {[%clk 0:00:30]} 31. Qxb7 {[%clk 0:00:55]}  Qb6+ {[%clk 0:00:30]} 32. Qxb6 {[%clk 0:00:55]}  axb6 {[%clk 0:00:31]} 33. Bf2 {[%clk 0:00:50]}  b5 {[%clk 0:00:25]} 34. Bd4+ {[%clk 0:00:42]}  f6 {[%clk 0:00:22]} 35. g3 {[%clk 0:00:33]}  Ne6 {[%clk 0:00:20]} 36. Bf2 {[%clk 0:00:33]}  Ne5 {[%clk 0:00:20]} 37. Ra1 {[%clk 0:00:32]}  Rd8 {[%clk 0:00:19]} 38. Ra7+ {[%clk 0:00:30]}  Rd7 {[%clk 0:00:19]} 39. Ra8 {[%clk 0:00:28]}  Rd2 {[%clk 0:00:18]} 40. Ra7+ {[%clk 0:00:29]}  Kg6 {[%clk 0:00:18]} 41. b4 {[%clk 0:00:27]}  Nd3 {[%clk 0:00:17]} 42. Bxd3 {[%clk 0:00:24]}  Rxd3 {[%clk 0:00:18]} 43. Re7 {[%clk 0:00:25]}  Ng7 {[%clk 0:00:18]} 44. Bd4 {[%clk 0:00:23]}  Rxg3+ {[%clk 0:00:17]} 45. Kh2 {[%clk 0:00:24]}  Rd3 {[%clk 0:00:16]} 46. Kg2 {[%clk 0:00:19]}  Nh5 {[%clk 0:00:17]} 47. Rc7 {[%clk 0:00:17]}  Nf4+ {[%clk 0:00:17]} 48. Kf1 {[%clk 0:00:17]}  Ne6 {[%clk 0:00:17]} 49. Rd7 {[%clk 0:00:14]}  Nxd4 {[%clk 0:00:17]} 50. cxd4 {[%clk 0:00:14]}  Rxh3 {[%clk 0:00:16]} 51. Rd6 {[%clk 0:00:13]}  Rc3 {[%clk 0:00:16]} 52. Ke2 {[%clk 0:00:13]}  Rc4 {[%clk 0:00:16]} 53. e5 {[%clk 0:00:13]}  Kh5 {[%clk 0:00:15]} 54. e6 {[%clk 0:00:07]}  Kg6 {[%clk 0:00:16]} 55. Rd8 {[%clk 0:00:08]}  Rc2+ {[%clk 0:00:14]} 56. Kd3 {[%clk 0:00:08]}  Rc1 {[%clk 0:00:14]} 57. Kd2 {[%clk 0:00:06]}  Rc4 {[%clk 0:00:14]} 58. Kd3 {[%clk 0:00:03]}  Rc1 {[%clk 0:00:14]} 59. Kd2 {[%clk 0:00:04]}  Rh1 {[%clk 0:00:14]} 60. Rf8 {[%clk 0:00:03]}  Rh2+ {[%clk 0:00:15]} 61. Kd3 {[%clk 0:00:03]}  Rh3+ {[%clk 0:00:15]} 62. Kd2 {[%clk 0:00:04]}  Rh2+ {[%clk 0:00:15]} 63. Ke3 {[%clk 0:00:04]}  Rh3+ {[%clk 0:00:15]} 64. Kf2 {[%clk 0:00:04]}  Rh2+ {[%clk 0:00:16]} 65. Kf3 {[%clk 0:00:03]}  Rh3+ {[%clk 0:00:16]} 66. Ke4 {[%clk 0:00:04]}  Rh4+ {[%clk 0:00:16]} 67. Kd3 {[%clk 0:00:04]}  Rh3+ {[%clk 0:00:16]} 68. Kc2 {[%clk 0:00:05]}  Rh2+ {[%clk 0:00:17]} 69. Kd1 {[%clk 0:00:05]}  Rh1+ {[%clk 0:00:17]} 70. Ke2 {[%clk 0:00:06]}  Rh2+ {[%clk 0:00:18]} 71. Kf1 {[%clk 0:00:06]}  Rh3 {[%clk 0:00:18]} 72. e7 {[%clk 0:00:06]}  Re3 {[%clk 0:00:18]} 73. e8=Q+ {[%clk 0:00:07]}  Rxe8 {[%clk 0:00:19]} 74. Rxe8 {[%clk 0:00:07]}  Kf5 {[%clk 0:00:19]} 75. Rc8 {[%clk 0:00:08]}  Ke4 {[%clk 0:00:19]} 76. Rxc6 {[%clk 0:00:08]}  f5 {[%clk 0:00:20]} 77. Rc5 {[%clk 0:00:07]}  f4 {[%clk 0:00:20]} 78. Rxb5 {[%clk 0:00:07]}  g4 {[%clk 0:00:21]} 79. Rh5 {[%clk 0:00:07]}  Kxd4 {[%clk 0:00:21]} 80. Rxh6 {[%clk 0:00:07]}  Ke3 {[%clk 0:00:22]} 81. Rf6 {[%clk 0:00:06]}  Kf3 {[%clk 0:00:23]} 82. b5 {[%clk 0:00:06]}  g3 {[%clk 0:00:24]} 83. b6 {[%clk 0:00:07]}  Kg4 {[%clk 0:00:24]} 84. b7 {[%clk 0:00:07]}  f3 {[%clk 0:00:25]} 85. Rxf3 {[%clk 0:00:07]}  g2+ {[%clk 0:00:26]} 86. Kxg2 {[%clk 0:00:07]}  Kh4 {[%clk 0:00:27]} 87. b8=Q {[%clk 0:00:06]}  Kg5 {[%clk 0:00:27]} 88. Qf4+ {[%clk 0:00:06]}  Kg6 {[%clk 0:00:28]} 89. Rg3+ {[%clk 0:00:07]}  Kh5 {[%clk 0:00:29]} 90. Qg5# {[%clk 0:00:07]} 1-0


[Site "https://www.chess.com"]

[Event "Titled Tuesday Blitz July 11 Late 2023"]
[White "Rodriguez Fontecha, Marcos"]
[Black "Vakhlamov, Igor L."]
[WhiteFideId "2256576"]
[BlackFideId "24126748"]
[WhiteElo "2425"]
[BlackElo "2774"]
[Result "0-1"]
[Round "1"]
[TimeControl "180+2"]
[Date "2023.07.11"]
[WhiteClock "0:00:05"]
[BlackClock "0:00:55"]
[Board "69"]

1. e4 {[%clk 0:02:58]}  c5 {[%clk 0:02:59]} 2. Nc3 {[%clk 0:02:58]}  e6 {[%clk 0:03:00]} 3. g3 {[%clk 0:02:57]}  d5 {[%clk 0:02:58]} 4. Bg2 {[%clk 0:02:58]}  dxe4 {[%clk 0:02:57]} 5. Nxe4 {[%clk 0:02:57]}  Nc6 {[%clk 0:02:57]} 6. d3 {[%clk 0:02:56]}  Be7 {[%clk 0:02:57]} 7. Ne2 {[%clk 0:02:56]}  Bd7 {[%clk 0:02:57]} 8. Be3 {[%clk 0:02:54]}  b6 {[%clk 0:02:55]} 9. O-O {[%clk 0:02:53]}  Nf6 {[%clk 0:02:54]} 10. N2c3 {[%clk 0:02:53]}  O-O {[%clk 0:02:54]} 11. Bf4 {[%clk 0:02:37]}  Rc8 {[%clk 0:02:40]} 12. Nd6 {[%clk 0:02:29]}  Bxd6 {[%clk 0:02:39]} 13. Bxd6 {[%clk 0:02:30]}  Re8 {[%clk 0:02:39]} 14. Re1 {[%clk 0:02:27]}  Nd4 {[%clk 0:02:38]} 15. Be5 {[%clk 0:02:22]}  Bc6 {[%clk 0:02:35]} 16. Ne4 {[%clk 0:02:18]}  Nxe4 {[%clk 0:02:31]} 17. dxe4 {[%clk 0:02:19]}  f6 {[%clk 0:02:27]} 18. Bf4 {[%clk 0:02:14]}  e5 {[%clk 0:02:20]} 19. Be3 {[%clk 0:02:14]}  Qe7 {[%clk 0:02:20]} 20. c3 {[%clk 0:02:12]}  Ne6 {[%clk 0:02:20]} 21. Qb3 {[%clk 0:02:03]}  Kh8 {[%clk 0:02:18]} 22. Rad1 {[%clk 0:02:03]}  Rcd8 {[%clk 0:02:11]} 23. Rxd8 {[%clk 0:02:01]}  Rxd8 {[%clk 0:02:12]} 24. Rd1 {[%clk 0:02:01]}  Rxd1+ {[%clk 0:02:09]} 25. Qxd1 {[%clk 0:02:02]}  Nc7 {[%clk 0:02:10]} 26. Qd3 {[%clk 0:01:55]}  Qd7 {[%clk 0:02:08]} 27. Qxd7 {[%clk 0:01:53]}  Bxd7 {[%clk 0:02:09]} 28. Kf1 {[%clk 0:01:52]}  Kg8 {[%clk 0:02:08]} 29. Ke2 {[%clk 0:01:51]}  Bb5+ {[%clk 0:02:02]} 30. Kd2 {[%clk 0:01:51]}  Kf7 {[%clk 0:01:59]} 31. f4 {[%clk 0:01:44]}  Bc4 {[%clk 0:01:46]} 32. a3 {[%clk 0:01:33]}  h6 {[%clk 0:01:44]} 33. Bh3 {[%clk 0:01:27]}  Ke7 {[%clk 0:01:41]} 34. Bc8 {[%clk 0:01:23]}  Nb5 {[%clk 0:01:41]} 35. Bf2 {[%clk 0:01:13]}  Nd6 {[%clk 0:01:40]} 36. Bf5 {[%clk 0:01:11]}  Be6 {[%clk 0:01:38]} 37. fxe5 {[%clk 0:01:07]}  fxe5 {[%clk 0:01:37]} 38. Bh7 {[%clk 0:01:03]}  Kf7 {[%clk 0:01:36]} 39. h4 {[%clk 0:00:54]}  g6 {[%clk 0:01:35]} 40. h5 {[%clk 0:00:51]}  gxh5 {[%clk 0:01:22]} 41. b4 {[%clk 0:00:34]}  c4 {[%clk 0:01:07]} 42. a4 {[%clk 0:00:30]}  Kg7 {[%clk 0:01:05]} 43. Bf5 {[%clk 0:00:29]}  Bxf5 {[%clk 0:01:06]} 44. exf5 {[%clk 0:00:30]}  Nxf5 {[%clk 0:01:07]} 45. a5 {[%clk 0:00:29]}  bxa5 {[%clk 0:01:04]} 46. bxa5 {[%clk 0:00:26]}  a6 {[%clk 0:01:04]} 47. Ke2 {[%clk 0:00:26]}  Kf6 {[%clk 0:01:03]} 48. Kf3 {[%clk 0:00:27]}  Ke6 {[%clk 0:01:02]} 49. Ke4 {[%clk 0:00:23]}  Nd6+ {[%clk 0:01:02]} 50. Kf3 {[%clk 0:00:24]}  Kd5 {[%clk 0:01:00]} 51. Be3 {[%clk 0:00:24]}  Ne4 {[%clk 0:00:57]} 52. Bxh6 {[%clk 0:00:19]}  Nxc3 {[%clk 0:00:56]} 53. Ke3 {[%clk 0:00:19]}  Ne4 {[%clk 0:00:54]} 54. Kf3 {[%clk 0:00:19]}  c3 {[%clk 0:00:54]} 55. Bc1 {[%clk 0:00:19]}  Kd4 {[%clk 0:00:54]} 56. Ba3 {[%clk 0:00:19]}  Kd3 {[%clk 0:00:55]} 57. Bc1 {[%clk 0:00:18]}  c2 {[%clk 0:00:55]} 58. Bh6 {[%clk 0:00:05]}  Nd2+ {[%clk 0:00:55]} 0-1


[Site "https://www.chess.com"]

[Event "Titled Tuesday Blitz July 11 Late 2023"]
[White "Rozman, Levy"]
[Black "Romero Ruscalleda, Josep"]
[WhiteFideId "2039877"]
[BlackFideId "2231859"]
[WhiteElo "2772"]
[BlackElo "2424"]
[Result "0-1"]
[Round "1"]
[TimeControl "180+2"]
[Date "2023.07.11"]
[WhiteClock "0:00:00"]
[BlackClock "0:00:44"]
[Board "70"]

1. e4 {[%clk 0:02:57]}  g6 {[%clk 0:03:00]} 2. d4 {[%clk 0:02:56]}  Bg7 {[%clk 0:03:01]} 3. Nf3 {[%clk 0:02:55]}  d6 {[%clk 0:03:01]} 4. c4 {[%clk 0:02:51]}  Nc6 {[%clk 0:03:00]} 5. Nc3 {[%clk 0:02:50]}  Bg4 {[%clk 0:02:59]} 6. Be3 {[%clk 0:02:49]}  e5 {[%clk 0:02:59]} 7. d5 {[%clk 0:02:48]}  Nd4 {[%clk 0:02:59]} 8. Be2 {[%clk 0:02:48]}  Nxe2 {[%clk 0:02:59]} 9. Qxe2 {[%clk 0:02:48]}  f5 {[%clk 0:03:00]} 10. h3 {[%clk 0:02:47]}  Bxf3 {[%clk 0:03:00]} 11. Qxf3 {[%clk 0:02:35]}  Ne7 {[%clk 0:03:00]} 12. O-O-O {[%clk 0:02:26]}  O-O {[%clk 0:02:59]} 13. h4 {[%clk 0:02:20]}  a6 {[%clk 0:02:40]} 14. h5 {[%clk 0:02:20]}  f4 {[%clk 0:02:33]} 15. Bd2 {[%clk 0:02:15]}  g5 {[%clk 0:02:32]} 16. h6 {[%clk 0:02:14]}  Bf6 {[%clk 0:02:32]} 17. g3 {[%clk 0:02:12]}  Kh8 {[%clk 0:02:29]} 18. Kb1 {[%clk 0:02:11]}  Qd7 {[%clk 0:02:24]} 19. g4 {[%clk 0:02:04]}  b5 {[%clk 0:02:19]} 20. Qe2 {[%clk 0:01:57]}  bxc4 {[%clk 0:02:14]} 21. f3 {[%clk 0:01:57]}  c6 {[%clk 0:02:06]} 22. Qxc4 {[%clk 0:01:56]}  cxd5 {[%clk 0:02:06]} 23. exd5 {[%clk 0:01:53]}  Rfc8 {[%clk 0:02:02]} 24. Qd3 {[%clk 0:01:53]}  Rab8 {[%clk 0:01:55]} 25. Ne4 {[%clk 0:01:53]}  Ng8 {[%clk 0:01:51]} 26. Rc1 {[%clk 0:01:50]}  Qb5 {[%clk 0:01:38]} 27. Qxb5 {[%clk 0:01:43]}  Rxc1+ {[%clk 0:01:35]} 28. Rxc1 {[%clk 0:01:33]}  axb5 {[%clk 0:01:34]} 29. Rc6 {[%clk 0:01:27]}  Be7 {[%clk 0:01:34]} 30. Rc7 {[%clk 0:01:24]}  Re8 {[%clk 0:01:17]} 31. Bb4 {[%clk 0:01:19]}  Nxh6 {[%clk 0:01:16]} 32. Bxd6 {[%clk 0:01:17]}  Bxd6 {[%clk 0:01:14]} 33. Nxd6 {[%clk 0:01:16]}  Rd8 {[%clk 0:01:14]} 34. Rc6 {[%clk 0:01:12]}  Kg7 {[%clk 0:01:12]} 35. Kc2 {[%clk 0:00:59]}  Nf7 {[%clk 0:01:11]} 36. Nf5+ {[%clk 0:00:56]}  Kf8 {[%clk 0:01:07]} 37. d6 {[%clk 0:00:55]}  Ke8 {[%clk 0:01:03]} 38. Kb3 {[%clk 0:00:53]}  Kd7 {[%clk 0:00:59]} 39. Rc7+ {[%clk 0:00:53]}  Ke6 {[%clk 0:01:00]} 40. Re7+ {[%clk 0:00:54]}  Kf6 {[%clk 0:01:00]} 41. Rb7 {[%clk 0:00:45]}  Nxd6 {[%clk 0:00:59]} 42. Rb6 {[%clk 0:00:37]}  Ke6 {[%clk 0:00:59]} 43. Kb4 {[%clk 0:00:16]}  Kd5 {[%clk 0:00:59]} 44. Nxd6 {[%clk 0:00:14]}  Rxd6 {[%clk 0:00:59]} 45. Rxb5+ {[%clk 0:00:15]}  Kd4 {[%clk 0:00:59]} 46. a4 {[%clk 0:00:12]}  h5 {[%clk 0:00:54]} 47. gxh5 {[%clk 0:00:06]}  g4 {[%clk 0:00:53]} 48. fxg4 {[%clk 0:00:05]}  f3 {[%clk 0:00:53]} 49. Rb8 {[%clk 0:00:04]}  Rf6 {[%clk 0:00:52]} 50. Rd8+ {[%clk 0:00:03]}  Ke3 {[%clk 0:00:51]} 51. g5 {[%clk 0:00:04]}  f2 {[%clk 0:00:48]} 52. Rd1 {[%clk 0:00:04]}  Rf5 {[%clk 0:00:48]} 53. h6 {[%clk 0:00:04]}  Rxg5 {[%clk 0:00:48]} 54. a5 {[%clk 0:00:05]}  Rh5 {[%clk 0:00:48]} 55. a6 {[%clk 0:00:05]}  Rxh6 {[%clk 0:00:48]} 56. Kb5 {[%clk 0:00:04]}  Rh8 {[%clk 0:00:46]} 57. b4 {[%clk 0:00:03]}  Ke2 {[%clk 0:00:46]} 58. Ra1 {[%clk 0:00:03]}  e4 {[%clk 0:00:46]} 59. Ra2+ {[%clk 0:00:03]}  Kf3 {[%clk 0:00:45]} 60. Ra1 {[%clk 0:00:04]}  e3 {[%clk 0:00:45]} 61. Kb6 {[%clk 0:00:04]}  e2 {[%clk 0:00:45]} 62. b5 {[%clk 0:00:00]}  e1=Q {[%clk 0:00:44]} 0-1


[Site "https://www.chess.com"]

[Event "Titled Tuesday Blitz July 11 Late 2023"]
[White "Martin Barcelo, Carles"]
[Black "Leitao, Rafael"]
[WhiteFideId "24561444"]
[BlackFideId "2101246"]
[WhiteElo "2422"]
[BlackElo "2758"]
[Result "1/2-1/2"]
[Round "1"]
[TimeControl "180+2"]
[Date "2023.07.11"]
[WhiteClock "0:00:20"]
[BlackClock "0:00:17"]
[Board "73"]

1. e4 {[%clk 0:02:57]}  e5 {[%clk 0:02:56]} 2. Nf3 {[%clk 0:02:56]}  Nc6 {[%clk 0:02:56]} 3. Nc3 {[%clk 0:02:56]}  Nf6 {[%clk 0:02:55]} 4. h3 {[%clk 0:02:56]}  g6 {[%clk 0:02:38]} 5. Bc4 {[%clk 0:02:55]}  Bg7 {[%clk 0:02:37]} 6. d3 {[%clk 0:02:54]}  d6 {[%clk 0:02:35]} 7. O-O {[%clk 0:02:54]}  O-O {[%clk 0:02:35]} 8. Re1 {[%clk 0:02:51]}  Be6 {[%clk 0:02:33]} 9. Be3 {[%clk 0:02:45]}  Qd7 {[%clk 0:02:28]} 10. Bxe6 {[%clk 0:02:42]}  fxe6 {[%clk 0:02:27]} 11. d4 {[%clk 0:02:42]}  exd4 {[%clk 0:02:26]} 12. Nxd4 {[%clk 0:02:43]}  Nxd4 {[%clk 0:02:24]} 13. Bxd4 {[%clk 0:02:44]}  e5 {[%clk 0:02:21]} 14. Be3 {[%clk 0:02:43]}  Rf7 {[%clk 0:02:20]} 15. Bg5 {[%clk 0:02:43]}  Raf8 {[%clk 0:02:13]} 16. Bxf6 {[%clk 0:02:42]}  Bxf6 {[%clk 0:02:13]} 17. Qg4 {[%clk 0:02:35]}  Qxg4 {[%clk 0:01:56]} 18. hxg4 {[%clk 0:02:36]}  Bd8 {[%clk 0:01:51]} 19. Re2 {[%clk 0:02:27]}  c6 {[%clk 0:01:47]} 20. a4 {[%clk 0:02:22]}  Bb6 {[%clk 0:01:46]} 21. Nd1 {[%clk 0:02:15]}  Rf4 {[%clk 0:01:44]} 22. a5 {[%clk 0:02:15]}  Bc5 {[%clk 0:01:44]} 23. c3 {[%clk 0:02:06]}  a6 {[%clk 0:01:42]} 24. b4 {[%clk 0:02:01]}  Ba7 {[%clk 0:01:42]} 25. g3 {[%clk 0:01:34]}  Rxg4 {[%clk 0:01:41]} 26. Kg2 {[%clk 0:01:35]}  Rg5 {[%clk 0:01:18]} 27. Ne3 {[%clk 0:01:23]}  Bxe3 {[%clk 0:00:57]} 28. Rxe3 {[%clk 0:01:23]}  Kf7 {[%clk 0:00:56]} 29. Rd1 {[%clk 0:00:58]}  Ke7 {[%clk 0:00:55]} 30. Red3 {[%clk 0:00:58]}  Rd8 {[%clk 0:00:36]} 31. c4 {[%clk 0:00:54]}  Ke6 {[%clk 0:00:36]} 32. f3 {[%clk 0:00:45]}  Rh5 {[%clk 0:00:36]} 33. b5 {[%clk 0:00:20]}  cxb5 {[%clk 0:00:33]} 34. cxb5 {[%clk 0:00:21]}  axb5 {[%clk 0:00:34]} 35. Rb1 {[%clk 0:00:21]}  Rc8 {[%clk 0:00:33]} 36. Rd2 {[%clk 0:00:20]}  Rc5 {[%clk 0:00:32]} 37. Rbd1 {[%clk 0:00:20]}  Rc6 {[%clk 0:00:33]} 38. Rb1 {[%clk 0:00:20]}  Rc5 {[%clk 0:00:22]} 39. Rbd1 {[%clk 0:00:20]}  Rc6 {[%clk 0:00:19]} 40. Rb1 {[%clk 0:00:20]}  Rc5 {[%clk 0:00:17]} 1/2-1/2


[Site "https://www.chess.com"]

[Event "Titled Tuesday Blitz July 11 Late 2023"]
[White "Haitin, Ilja"]
[Black "Yanchenko, Roman"]
[WhiteFideId "4501764"]
[BlackFideId "4137329"]
[WhiteElo "2414"]
[BlackElo "2750"]
[Result "0-1"]
[Round "1"]
[TimeControl "180+2"]
[Date "2023.07.11"]
[WhiteClock "0:00:00"]
[BlackClock "0:00:26"]
[Board "77"]

1. Nf3 {[%clk 0:03:00]}  d5 {[%clk 0:02:52]} 2. e3 {[%clk 0:03:00]}  Nf6 {[%clk 0:02:52]} 3. b3 {[%clk 0:03:01]}  Bf5 {[%clk 0:02:52]} 4. Bb2 {[%clk 0:03:01]}  e6 {[%clk 0:02:53]} 5. Nh4 {[%clk 0:03:00]}  Be4 {[%clk 0:02:53]} 6. d3 {[%clk 0:02:57]}  Bg6 {[%clk 0:02:53]} 7. Nxg6 {[%clk 0:02:56]}  hxg6 {[%clk 0:02:54]} 8. g3 {[%clk 0:02:55]}  c5 {[%clk 0:02:54]} 9. Bg2 {[%clk 0:02:55]}  Nc6 {[%clk 0:02:55]} 10. O-O {[%clk 0:02:55]}  Qc7 {[%clk 0:02:54]} 11. c4 {[%clk 0:02:53]}  dxc4 {[%clk 0:02:54]} 12. dxc4 {[%clk 0:02:50]}  Rd8 {[%clk 0:02:53]} 13. Qe2 {[%clk 0:02:50]}  Bd6 {[%clk 0:02:52]} 14. Nc3 {[%clk 0:02:50]}  a6 {[%clk 0:02:52]} 15. Rad1 {[%clk 0:02:50]}  O-O {[%clk 0:02:51]} 16. f4 {[%clk 0:02:25]}  Be7 {[%clk 0:02:47]} 17. g4 {[%clk 0:02:23]}  Rxd1 {[%clk 0:02:40]} 18. Rxd1 {[%clk 0:02:21]}  Rd8 {[%clk 0:02:41]} 19. h3 {[%clk 0:02:20]}  Rd7 {[%clk 0:02:35]} 20. Rxd7 {[%clk 0:02:17]}  Qxd7 {[%clk 0:02:36]} 21. Qd1 {[%clk 0:02:17]}  Qc8 {[%clk 0:02:33]} 22. Kf2 {[%clk 0:02:11]}  Bd8 {[%clk 0:02:06]} 23. Bf3 {[%clk 0:02:10]}  Ba5 {[%clk 0:02:05]} 24. Ne4 {[%clk 0:02:07]}  Nxe4+ {[%clk 0:02:03]} 25. Bxe4 {[%clk 0:02:08]}  Qc7 {[%clk 0:01:56]} 26. Bf3 {[%clk 0:02:07]}  b5 {[%clk 0:01:49]} 27. Qd3 {[%clk 0:02:06]}  b4 {[%clk 0:01:07]} 28. Qe4 {[%clk 0:01:59]}  Ne7 {[%clk 0:01:07]} 29. Qa8+ {[%clk 0:01:58]}  Qd8 {[%clk 0:01:06]} 30. Qxd8+ {[%clk 0:01:53]}  Bxd8 {[%clk 0:01:07]} 31. Bb7 {[%clk 0:01:49]}  a5 {[%clk 0:01:06]} 32. Be5 {[%clk 0:01:48]}  Bb6 {[%clk 0:00:55]} 33. Bd6 {[%clk 0:01:48]}  Kf8 {[%clk 0:00:55]} 34. h4 {[%clk 0:01:38]}  Ke8 {[%clk 0:00:53]} 35. Be5 {[%clk 0:01:27]}  f6 {[%clk 0:00:53]} 36. Bb2 {[%clk 0:01:27]}  Kd7 {[%clk 0:00:50]} 37. Be4 {[%clk 0:01:24]}  Bd8 {[%clk 0:00:48]} 38. Kf3 {[%clk 0:01:23]}  Kd6 {[%clk 0:00:48]} 39. Bb1 {[%clk 0:01:21]}  Kd7 {[%clk 0:00:45]} 40. h5 {[%clk 0:01:13]}  gxh5 {[%clk 0:00:44]} 41. gxh5 {[%clk 0:01:14]}  Nc6 {[%clk 0:00:42]} 42. Be4 {[%clk 0:01:00]}  Na7 {[%clk 0:00:40]} 43. Bh7 {[%clk 0:00:40]}  Nc8 {[%clk 0:00:40]} 44. e4 {[%clk 0:00:38]}  Nb6 {[%clk 0:00:38]} 45. f5 {[%clk 0:00:32]}  e5 {[%clk 0:00:37]} 46. Bg8 {[%clk 0:00:31]}  a4 {[%clk 0:00:36]} 47. Bc1 {[%clk 0:00:29]}  a3 {[%clk 0:00:35]} 48. Be3 {[%clk 0:00:28]}  Be7 {[%clk 0:00:35]} 49. Kg4 {[%clk 0:00:26]}  Na4 {[%clk 0:00:32]} 50. Be6+ {[%clk 0:00:18]}  Kd8 {[%clk 0:00:26]} 51. h6 {[%clk 0:00:07]}  gxh6 {[%clk 0:00:26]} 52. Bc1 {[%clk 0:00:00]}  Nc3 {[%clk 0:00:26]} 0-1


[Site "https://www.chess.com"]

[Event "Titled Tuesday Blitz July 11 Late 2023"]
[White "Boruchovsky, Avital"]
[Black "Nikologorsky, Matfei"]
[WhiteFideId "2800055"]
[BlackFideId "24102474"]
[WhiteElo "2739"]
[BlackElo "2409"]
[Result "1-0"]
[Round "1"]
[TimeControl "180+2"]
[Date "2023.07.11"]
[WhiteClock "0:01:45"]
[BlackClock "0:00:15"]
[Board "82"]

1. d4 {[%clk 0:03:00]}  Nf6 {[%clk 0:02:59]} 2. Nc3 {[%clk 0:03:01]}  d5 {[%clk 0:02:57]} 3. Bf4 {[%clk 0:03:01]}  a6 {[%clk 0:02:55]} 4. Nf3 {[%clk 0:03:00]}  c5 {[%clk 0:02:55]} 5. dxc5 {[%clk 0:02:58]}  Nc6 {[%clk 0:02:52]} 6. Na4 {[%clk 0:02:46]}  Bg4 {[%clk 0:02:37]} 7. c3 {[%clk 0:02:32]}  Bxf3 {[%clk 0:02:11]} 8. exf3 {[%clk 0:02:30]}  e5 {[%clk 0:02:11]} 9. Bg5 {[%clk 0:02:29]}  h6 {[%clk 0:01:28]} 10. Bxf6 {[%clk 0:02:27]}  Qxf6 {[%clk 0:01:29]} 11. Nb6 {[%clk 0:02:14]}  Rd8 {[%clk 0:01:27]} 12. Nxd5 {[%clk 0:02:13]}  Qg6 {[%clk 0:01:10]} 13. Nc7+ {[%clk 0:02:11]}  Ke7 {[%clk 0:01:10]} 14. Nd5+ {[%clk 0:02:12]}  Ke8 {[%clk 0:01:10]} 15. Nc7+ {[%clk 0:01:58]}  Ke7 {[%clk 0:01:09]} 16. Qb3 {[%clk 0:01:58]}  Kd7 {[%clk 0:00:35]} 17. Qxb7 {[%clk 0:01:46]}  Rb8 {[%clk 0:00:15]} 18. O-O-O+ {[%clk 0:01:45]} 1-0


[Site "https://www.chess.com"]

[Event "Titled Tuesday Blitz July 11 Late 2023"]
[White "Jaracz, Pawel"]
[Black "Balla, Tamas-Kristof"]
[WhiteFideId "1102222"]
[BlackFideId "1208497"]
[WhiteElo "2719"]
[BlackElo "2406"]
[Result "1-0"]
[Round "1"]
[TimeControl "180+2"]
[Date "2023.07.11"]
[WhiteClock "0:02:29"]
[BlackClock "0:01:34"]
[Board "84"]

1. d4 {[%clk 0:02:58]}  d5 {[%clk 0:02:59]} 2. c4 {[%clk 0:02:58]}  e6 {[%clk 0:03:00]} 3. Nf3 {[%clk 0:02:58]}  c5 {[%clk 0:02:58]} 4. cxd5 {[%clk 0:02:55]}  exd5 {[%clk 0:02:59]} 5. e3 {[%clk 0:02:53]}  Nf6 {[%clk 0:02:53]} 6. Nc3 {[%clk 0:02:53]}  Nc6 {[%clk 0:02:53]} 7. Bb5 {[%clk 0:02:52]}  Bd6 {[%clk 0:02:53]} 8. dxc5 {[%clk 0:02:52]}  Bxc5 {[%clk 0:02:54]} 9. O-O {[%clk 0:02:52]}  O-O {[%clk 0:02:54]} 10. b3 {[%clk 0:02:52]}  Bg4 {[%clk 0:02:52]} 11. Bb2 {[%clk 0:02:51]}  a6 {[%clk 0:02:41]} 12. Bxc6 {[%clk 0:02:50]}  bxc6 {[%clk 0:02:41]} 13. Rc1 {[%clk 0:02:49]}  Rc8 {[%clk 0:02:38]} 14. Ne2 {[%clk 0:02:46]}  Bd6 {[%clk 0:02:33]} 15. Qd3 {[%clk 0:02:39]}  Ne4 {[%clk 0:02:15]} 16. Ng3 {[%clk 0:02:35]}  Nxg3 {[%clk 0:02:07]} 17. hxg3 {[%clk 0:02:34]}  Re8 {[%clk 0:01:46]} 18. Qd4 {[%clk 0:02:30]}  f6 {[%clk 0:01:34]} 19. Qxg4 {[%clk 0:02:29]} 1-0


[Site "https://www.chess.com"]